[Event "*** SCC Grand Prix: Titled Tuesday Blitz"]
[Site "Chess.com"]
[Date "2020.10.13"]
[Round "7"]
[White "chito89"]
[Black "KuzubovYuriy"]
[Result "0-1"]
[WhiteElo "2796"]
[BlackElo "2896"]
[TimeControl "180+1"]
[EndTime "11:18:03 PDT"]
[Termination "KuzubovYuriy won on time"]

1. e4 {[%clk 0:02:58.4]} 1... c5 {[%clk 0:02:59.3]} 2. Nf3 {[%clk 0:02:58.1]}
2... Nc6 {[%clk 0:02:59.9]} 3. g3 {[%clk 0:02:54.5]} 3... g6 {[%clk 0:02:56.3]}
4. Bg2 {[%clk 0:02:54.6]} 4... Bg7 {[%clk 0:02:57]} 5. O-O {[%clk 0:02:55]} 5...
d6 {[%clk 0:02:57.5]} 6. c3 {[%clk 0:02:54.9]} 6... Nf6 {[%clk 0:02:56.4]} 7.
Re1 {[%clk 0:02:51.6]} 7... e5 {[%clk 0:02:50.6]} 8. d4 {[%clk 0:02:46.1]} 8...
cxd4 {[%clk 0:02:44.2]} 9. cxd4 {[%clk 0:02:47]} 9... Bg4 {[%clk 0:02:44.1]} 10.
d5 {[%clk 0:02:10.5]} 10... Nd4 {[%clk 0:02:42.9]} 11. Be3 {[%clk 0:02:03.7]}
11... O-O {[%clk 0:02:22.2]} 12. Nc3 {[%clk 0:01:27.5]} 12... Nd7 {[%clk
0:02:05.3]} 13. Rc1 {[%clk 0:01:27]} 13... a6 {[%clk 0:01:50.7]} 14. Bxd4 {[%clk
0:01:12.7]} 14... exd4 {[%clk 0:01:49.9]} 15. Ne2 {[%clk 0:01:13.6]} 15... Qb6
{[%clk 0:01:36.2]} 16. Qd2 {[%clk 0:01:13.5]} 16... Bxf3 {[%clk 0:01:22.5]} 17.
Bxf3 {[%clk 0:01:14.4]} 17... Rfe8 {[%clk 0:01:17.8]} 18. Bg2 {[%clk 0:01:12.1]}
18... Nc5 {[%clk 0:01:08.9]} 19. Nxd4 {[%clk 0:00:50.8]} 19... Nxe4 {[%clk
0:01:03]} 20. Bxe4 {[%clk 0:00:51.7]} 20... Bxd4 {[%clk 0:01:01.7]} 21. Rc4
{[%clk 0:00:51.3]} 21... Bf6 {[%clk 0:00:53.9]} 22. Rec1 {[%clk 0:00:50.9]}
22... Re7 {[%clk 0:00:47.6]} 23. b4 {[%clk 0:00:47.1]} 23... Rae8 {[%clk
0:00:46.6]} 24. Bf3 {[%clk 0:00:47.6]} 24... Kg7 {[%clk 0:00:45.1]} 25. Kg2
{[%clk 0:00:47.6]} 25... h5 {[%clk 0:00:44.2]} 26. h4 {[%clk 0:00:43.4]} 26...
Qb5 {[%clk 0:00:33]} 27. Rf4 {[%clk 0:00:41.3]} 27... Be5 {[%clk 0:00:31.7]} 28.
Rfc4 {[%clk 0:00:39.6]} 28... Qa4 {[%clk 0:00:29.8]} 29. Bd1 {[%clk 0:00:36.2]}
29... Qd7 {[%clk 0:00:28.4]} 30. a4 {[%clk 0:00:31.9]} 30... Bf6 {[%clk
0:00:25.2]} 31. a5 {[%clk 0:00:27.3]} 31... Qb5 {[%clk 0:00:21.6]} 32. Bf3
{[%clk 0:00:25.5]} 32... Re5 {[%clk 0:00:20.3]} 33. Rf4 {[%clk 0:00:23.7]} 33...
Qd7 {[%clk 0:00:18.4]} 34. Bd1 {[%clk 0:00:20.4]} 34... Qd8 {[%clk 0:00:18.6]}
35. Ba4 {[%clk 0:00:17.7]} 35... Rf8 {[%clk 0:00:17.6]} 36. Qd3 {[%clk 0:00:15]}
36... g5 {[%clk 0:00:17.5]} 37. hxg5 {[%clk 0:00:15.2]} 37... Bxg5 {[%clk
0:00:17.7]} 38. Bc2 {[%clk 0:00:13.5]} 38... Rh8 {[%clk 0:00:17.1]} 39. Qd4
{[%clk 0:00:13.6]} 39... Kf8 {[%clk 0:00:16.6]} 40. Bg6 {[%clk 0:00:08.3]} 40...
f6 {[%clk 0:00:15.9]} 41. Bf5 {[%clk 0:00:06.8]} 41... Bxf4 {[%clk 0:00:15.6]}
42. Rc8 {[%clk 0:00:06.6]} 42... Qxc8 {[%clk 0:00:15.4]} 43. Bxc8 {[%clk
0:00:07.5]} 43... Bh6 {[%clk 0:00:14.8]} 44. Bxb7 {[%clk 0:00:07.8]} 44... Kg7
{[%clk 0:00:14.7]} 45. Bxa6 {[%clk 0:00:07.2]} 45... h4 {[%clk 0:00:15.2]} 46.
Qa7+ {[%clk 0:00:07.1]} 46... Kg6 {[%clk 0:00:14.9]} 47. Bd3+ {[%clk 0:00:07.3]}
47... f5 {[%clk 0:00:15.2]} 48. Qd7 {[%clk 0:00:07.2]} 48... Bg7 {[%clk
0:00:15.4]} 49. g4 {[%clk 0:00:06.2]} 49... h3+ {[%clk 0:00:14.2]} 50. Kh2
{[%clk 0:00:06.6]} 50... Bf6 {[%clk 0:00:14.3]} 51. f4 {[%clk 0:00:04.1]} 51...
Re3 {[%clk 0:00:10.3]} 52. Qxf5+ {[%clk 0:00:02.6]} 52... Kf7 {[%clk 0:00:10.5]}
53. Qg6+ {[%clk 0:00:03.5]} 53... Ke7 {[%clk 0:00:10.7]} 54. g5 {[%clk 0:00:04]}
54... Bd4 {[%clk 0:00:10.3]} 55. f5 {[%clk 0:00:03]} 55... Rc8 {[%clk
0:00:09.7]} 56. f6+ {[%clk 0:00:02.8]} 56... Kd8 {[%clk 0:00:10.3]} 57. Bf5
{[%clk 0:00:03.2]} 57... Rcc3 {[%clk 0:00:09.8]} 58. Qg8+ {[%clk 0:00:02.7]}
58... Re8 {[%clk 0:00:09.9]} 59. Qf7 {[%clk 0:00:02.5]} 59... Re2+ {[%clk
0:00:10]} 0-1

[Event "*** SCC Grand Prix: Titled Tuesday Blitz"]
[Site "Chess.com"]
[Date "2020.10.13"]
[Round "7"]
[White "pavelalexandru07"]
[Black "Piotrek1979"]
[Result "1-0"]
[WhiteElo "2258"]
[BlackElo "2419"]
[TimeControl "180+1"]
[EndTime "11:18:03 PDT"]
[Termination "pavelalexandru07 won by resignation"]

1. d4 {[%clk 0:03:00.9]} 1... Nf6 {[%clk 0:02:58.7]} 2. c4 {[%clk 0:03:00.2]}
2... g6 {[%clk 0:02:58.9]} 3. Nc3 {[%clk 0:02:59.9]} 3... Bg7 {[%clk 0:02:59.5]}
4. e4 {[%clk 0:03:00.3]} 4... d6 {[%clk 0:03:00.2]} 5. Be2 {[%clk 0:03:00.3]}
5... O-O {[%clk 0:03:00.9]} 6. Be3 {[%clk 0:03:00.5]} 6... Na6 {[%clk
0:02:31.8]} 7. Nf3 {[%clk 0:02:57.4]} 7... c5 {[%clk 0:02:29.6]} 8. d5 {[%clk
0:02:46.8]} 8... Bg4 {[%clk 0:02:29.1]} 9. O-O {[%clk 0:02:46.1]} 9... Nd7
{[%clk 0:02:26.1]} 10. h3 {[%clk 0:02:44]} 10... Bxf3 {[%clk 0:02:25.3]} 11.
Bxf3 {[%clk 0:02:44.9]} 11... Rb8 {[%clk 0:02:22.9]} 12. Be2 {[%clk 0:02:40.7]}
12... Nc7 {[%clk 0:02:22.3]} 13. Rb1 {[%clk 0:02:26.6]} 13... a6 {[%clk
0:02:21.9]} 14. a4 {[%clk 0:02:23.3]} 14... b5 {[%clk 0:02:19]} 15. axb5 {[%clk
0:02:14.8]} 15... axb5 {[%clk 0:02:19.9]} 16. Nxb5 {[%clk 0:02:03.9]} 16... Nxb5
{[%clk 0:02:19.1]} 17. cxb5 {[%clk 0:02:03.9]} 17... Qa5 {[%clk 0:02:18.1]} 18.
Qc2 {[%clk 0:02:01.6]} 18... Rfc8 {[%clk 0:01:59]} 19. Rfc1 {[%clk 0:02:00.8]}
19... Nb6 {[%clk 0:01:37]} 20. b4 {[%clk 0:01:20.8]} 20... cxb4 {[%clk
0:01:32.9]} 21. Bxb6 {[%clk 0:01:20.5]} 21... Rxc2 {[%clk 0:01:33.4]} 22. Bxa5
{[%clk 0:01:20.4]} 22... Rxe2 {[%clk 0:01:33.6]} 23. Rxb4 {[%clk 0:01:20.7]}
23... Bb2 {[%clk 0:01:23.7]} 24. Rc6 {[%clk 0:01:10]} 24... Ba3 {[%clk
0:01:21.4]} 25. Rb1 {[%clk 0:01:08.3]} 25... Bc5 {[%clk 0:01:20]} 26. b6 {[%clk
0:00:58.1]} 26... Bxf2+ {[%clk 0:00:56.5]} 27. Kf1 {[%clk 0:00:57.7]} 27... Ra2
{[%clk 0:00:57.4]} 28. b7 {[%clk 0:00:54.5]} 28... Ba7 {[%clk 0:00:55]} 29. Rc8+
{[%clk 0:00:53.3]} 29... Kg7 {[%clk 0:00:53.6]} 30. Bc7 {[%clk 0:00:53.4]} 30...
Rxb7 {[%clk 0:00:48.3]} 31. Rxb7 {[%clk 0:00:51.2]} 31... Bd4 {[%clk 0:00:49.2]}
32. Bb6 {[%clk 0:00:42.8]} 32... Be5 {[%clk 0:00:34.7]} 33. Rxe7 {[%clk
0:00:39.6]} 33... Ra1+ {[%clk 0:00:22.8]} 34. Ke2 {[%clk 0:00:39.1]} 34... Ra4
{[%clk 0:00:23.7]} 35. Kf3 {[%clk 0:00:12.2]} 35... Ra3+ {[%clk 0:00:23.5]} 36.
Kf2 {[%clk 0:00:11.3]} 36... Ra4 {[%clk 0:00:24.4]} 37. Rxe5 {[%clk 0:00:10.5]}
37... dxe5 {[%clk 0:00:23.7]} 38. Kf3 {[%clk 0:00:10.7]} 38... Ra3+ {[%clk
0:00:23]} 39. Ke2 {[%clk 0:00:10.3]} 39... Ra2+ {[%clk 0:00:22.7]} 40. Kd3
{[%clk 0:00:10.2]} 40... Ra3+ {[%clk 0:00:20.1]} 41. Kc4 {[%clk 0:00:10.1]}
41... Ra2 {[%clk 0:00:20.6]} 42. Kb5 {[%clk 0:00:08.1]} 42... Rxg2 {[%clk
0:00:19.6]} 43. d6 {[%clk 0:00:08.5]} 43... Rd2 {[%clk 0:00:19.2]} 44. Rd8
{[%clk 0:00:07.6]} 44... f5 {[%clk 0:00:17.9]} 45. d7 {[%clk 0:00:07.7]} 45...
f4 {[%clk 0:00:13.6]} 46. Kc6 {[%clk 0:00:05.5]} 46... g5 {[%clk 0:00:11.9]} 47.
Re8 {[%clk 0:00:05.4]} 47... h5 {[%clk 0:00:11.8]} 48. d8=Q {[%clk 0:00:05.6]}
48... Rxd8 {[%clk 0:00:11.7]} 49. Rxd8 {[%clk 0:00:06.1]} 49... g4 {[%clk
0:00:12.6]} 50. hxg4 {[%clk 0:00:06]} 50... hxg4 {[%clk 0:00:13.5]} 51. Rd5
{[%clk 0:00:06]} 51... Kf6 {[%clk 0:00:13.6]} 52. Rd6+ {[%clk 0:00:06.2]} 52...
Kg5 {[%clk 0:00:13.1]} 53. Re6 {[%clk 0:00:06.7]} 53... f3 {[%clk 0:00:14]} 54.
Rxe5+ {[%clk 0:00:07.2]} 54... Kf4 {[%clk 0:00:14.9]} 55. Rf5+ {[%clk
0:00:07.6]} 55... Kxe4 {[%clk 0:00:15.4]} 56. Rf8 {[%clk 0:00:08]} 56... g3
{[%clk 0:00:15.3]} 57. Kd6 {[%clk 0:00:08.4]} 57... f2 {[%clk 0:00:10.3]} 58.
Bxf2 {[%clk 0:00:07.8]} 58... gxf2 {[%clk 0:00:11.2]} 59. Rxf2 {[%clk
0:00:07.9]} 59... Ke3 {[%clk 0:00:12.1]} 60. Rf5 {[%clk 0:00:08.2]} 60... Ke4
{[%clk 0:00:12]} 61. Rd5 {[%clk 0:00:08.4]} 61... Ke3 {[%clk 0:00:10.9]} 62. Ke5
{[%clk 0:00:08.6]} 62... Kf3 {[%clk 0:00:10.6]} 63. Rd3+ {[%clk 0:00:08.7]}
63... Kg4 {[%clk 0:00:11.5]} 64. Re3 {[%clk 0:00:09.1]} 64... Kh4 {[%clk
0:00:11.5]} 65. Kf4 {[%clk 0:00:09.4]} 65... Kh5 {[%clk 0:00:11.1]} 66. Rg3
{[%clk 0:00:10]} 1-0

[Event "*** SCC Grand Prix: Titled Tuesday Blitz"]
[Site "Chess.com"]
[Date "2020.10.13"]
[Round "7"]
[White "vovachesss"]
[Black "GameOverBro"]
[Result "1-0"]
[WhiteElo "2686"]
[BlackElo "2537"]
[TimeControl "180+1"]
[EndTime "11:18:07 PDT"]
[Termination "vovachesss won by checkmate"]

1. d4 {[%clk 0:03:00.9]} 1... d6 {[%clk 0:02:58.2]} 2. e4 {[%clk 0:02:58.5]}
2... Nf6 {[%clk 0:02:57.9]} 3. Nc3 {[%clk 0:02:58.6]} 3... e5 {[%clk 0:02:58.3]}
4. Nf3 {[%clk 0:02:57.8]} 4... Nbd7 {[%clk 0:02:57.9]} 5. Bc4 {[%clk 0:02:55.3]}
5... Be7 {[%clk 0:02:57.9]} 6. h3 {[%clk 0:02:53.6]} 6... c6 {[%clk 0:02:57.5]}
7. a4 {[%clk 0:02:53.3]} 7... h6 {[%clk 0:02:56.7]} 8. O-O {[%clk 0:02:52.5]}
8... Qc7 {[%clk 0:02:56.8]} 9. Re1 {[%clk 0:02:52.7]} 9... Nf8 {[%clk
0:02:56.7]} 10. Nh4 {[%clk 0:02:49.2]} 10... Ne6 {[%clk 0:02:56.6]} 11. dxe5
{[%clk 0:02:46.1]} 11... dxe5 {[%clk 0:02:56.2]} 12. Nf5 {[%clk 0:02:47]} 12...
O-O {[%clk 0:02:56.5]} 13. Qf3 {[%clk 0:02:19.5]} 13... Ng5 {[%clk 0:02:16.6]}
14. Qg3 {[%clk 0:02:07.4]} 14... Nh5 {[%clk 0:02:12.3]} 15. Qg4 {[%clk
0:01:42.8]} 15... Nf6 {[%clk 0:02:11.9]} 16. Qg3 {[%clk 0:01:27.3]} 16... Nh5
{[%clk 0:02:11.6]} 17. Qg4 {[%clk 0:01:24]} 17... Nf6 {[%clk 0:02:11.6]} 18. Qe2
{[%clk 0:01:24.6]} 18... Bb4 {[%clk 0:02:05.8]} 19. f3 {[%clk 0:01:14.4]} 19...
Nh5 {[%clk 0:01:43.6]} 20. Bd2 {[%clk 0:00:49.5]} 20... Be6 {[%clk 0:01:32.2]}
21. Bxg5 {[%clk 0:00:39.9]} 21... hxg5 {[%clk 0:01:09.8]} 22. Bxe6 {[%clk
0:00:38]} 22... fxe6 {[%clk 0:01:03.5]} 23. Qc4 {[%clk 0:00:38.4]} 23... Bxc3
{[%clk 0:01:01.9]} 24. Qxe6+ {[%clk 0:00:36.5]} 24... Kh8 {[%clk 0:00:52.8]} 25.
bxc3 {[%clk 0:00:36.1]} 25... Rf6 {[%clk 0:00:51.4]} 26. Qc4 {[%clk 0:00:27.6]}
26... Nf4 {[%clk 0:00:46.6]} 27. Rad1 {[%clk 0:00:27.3]} 27... Rd8 {[%clk
0:00:46.1]} 28. Qc5 {[%clk 0:00:22.1]} 28... b6 {[%clk 0:00:42.5]} 29. Qf2
{[%clk 0:00:10.8]} 29... g6 {[%clk 0:00:35]} 30. Ne3 {[%clk 0:00:11]} 30... Rfd6
{[%clk 0:00:34.2]} 31. Rxd6 {[%clk 0:00:11]} 31... Qxd6 {[%clk 0:00:33]} 32. Rd1
{[%clk 0:00:11.2]} 32... Qe7 {[%clk 0:00:21.3]} 33. Rxd8+ {[%clk 0:00:12.1]}
33... Qxd8 {[%clk 0:00:22.2]} 34. Ng4 {[%clk 0:00:12.7]} 34... Qd1+ {[%clk
0:00:20.5]} 35. Kh2 {[%clk 0:00:12.5]} 35... Ne2 {[%clk 0:00:15.6]} 36. Nxe5
{[%clk 0:00:07.9]} 36... Qd6 {[%clk 0:00:12.2]} 37. Qxe2 {[%clk 0:00:08.1]}
37... Qxe5+ {[%clk 0:00:12.1]} 38. g3 {[%clk 0:00:04.3]} 38... Qxc3 {[%clk
0:00:13]} 39. Qd3 {[%clk 0:00:04.7]} 39... Qe1 {[%clk 0:00:11.7]} 40. Kg2 {[%clk
0:00:04.2]} 40... Kg7 {[%clk 0:00:10.7]} 41. Qd4+ {[%clk 0:00:04.1]} 41... Kh7
{[%clk 0:00:10.5]} 42. Qd7+ {[%clk 0:00:04]} 42... Kh6 {[%clk 0:00:10.9]} 43.
Qd3 {[%clk 0:00:03.7]} 43... c5 {[%clk 0:00:09]} 44. c4 {[%clk 0:00:03.4]} 44...
Qc1 {[%clk 0:00:06.5]} 45. Qe2 {[%clk 0:00:03.2]} 45... Qa1 {[%clk 0:00:05]} 46.
Qd2 {[%clk 0:00:03.7]} 46... Qxa4 {[%clk 0:00:04.1]} 47. h4 {[%clk 0:00:04.2]}
47... Qxc4 {[%clk 0:00:03]} 48. Qxg5+ {[%clk 0:00:04.4]} 48... Kh7 {[%clk
0:00:03]} 49. Qe7+ {[%clk 0:00:03.8]} 49... Kh6 {[%clk 0:00:02.6]} 50. Qf8+
{[%clk 0:00:03.7]} 50... Kh7 {[%clk 0:00:02.7]} 51. Qe7+ {[%clk 0:00:04.1]}
51... Kh6 {[%clk 0:00:03.1]} 52. Qg5+ {[%clk 0:00:04.8]} 52... Kh7 {[%clk
0:00:03.7]} 53. Qd2 {[%clk 0:00:05.4]} 53... b5 {[%clk 0:00:03.6]} 54. e5 {[%clk
0:00:05.9]} 54... b4 {[%clk 0:00:03.2]} 55. g4 {[%clk 0:00:04.9]} 55... b3
{[%clk 0:00:03.2]} 56. Qd7+ {[%clk 0:00:05.3]} 56... Kh6 {[%clk 0:00:03.1]} 57.
g5+ {[%clk 0:00:04.9]} 57... Kh5 {[%clk 0:00:02.9]} 58. Qh7# {[%clk 0:00:05.8]}
1-0

[Event "*** SCC Grand Prix: Titled Tuesday Blitz"]
[Site "Chess.com"]
[Date "2020.10.13"]
[Round "7"]
[White "Ladislav1969"]
[Black "Natalya_Buksa"]
[Result "0-1"]
[WhiteElo "2370"]
[BlackElo "2518"]
[TimeControl "180+1"]
[EndTime "11:18:08 PDT"]
[Termination "Natalya_Buksa won by resignation"]

1. e4 {[%clk 0:03:00.9]} 1... c5 {[%clk 0:02:59.8]} 2. d4 {[%clk 0:03:00.9]}
2... cxd4 {[%clk 0:02:59.8]} 3. c3 {[%clk 0:03:01.8]} 3... d3 {[%clk 0:02:58.2]}
4. Bxd3 {[%clk 0:03:00.7]} 4... Nc6 {[%clk 0:02:59.1]} 5. c4 {[%clk 0:03:01.2]}
5... g6 {[%clk 0:02:57.7]} 6. Nc3 {[%clk 0:03:01.8]} 6... Bg7 {[%clk 0:02:58.1]}
7. f4 {[%clk 0:03:02.1]} 7... d6 {[%clk 0:02:57.6]} 8. Nf3 {[%clk 0:03:02.3]}
8... Nf6 {[%clk 0:02:57.8]} 9. h3 {[%clk 0:03:01.8]} 9... O-O {[%clk 0:02:58]}
10. Be3 {[%clk 0:03:02]} 10... Nd7 {[%clk 0:02:57.6]} 11. Rc1 {[%clk 0:03:01.1]}
11... Nc5 {[%clk 0:02:58]} 12. Bb1 {[%clk 0:03:01]} 12... Be6 {[%clk 0:02:35.9]}
13. b3 {[%clk 0:02:58]} 13... Qa5 {[%clk 0:02:34.4]} 14. Qd2 {[%clk 0:02:50.7]}
14... a6 {[%clk 0:02:24.9]} 15. O-O {[%clk 0:02:37.3]} 15... f5 {[%clk
0:02:21.5]} 16. Ng5 {[%clk 0:02:18.5]} 16... Bf7 {[%clk 0:02:13.8]} 17. Nxf7
{[%clk 0:02:15.3]} 17... Rxf7 {[%clk 0:02:14.7]} 18. exf5 {[%clk 0:02:13.8]}
18... gxf5 {[%clk 0:02:13.1]} 19. Qe1 {[%clk 0:01:51.7]} 19... Re8 {[%clk
0:02:06.2]} 20. Qg3 {[%clk 0:01:49.8]} 20... Nb4 {[%clk 0:02:01.2]} 21. Bd4
{[%clk 0:01:37.1]} 21... e5 {[%clk 0:02:00.7]} 22. fxe5 {[%clk 0:01:34.6]} 22...
dxe5 {[%clk 0:02:01]} 23. Bxf5 {[%clk 0:01:29.6]} 23... Rxf5 {[%clk 0:01:48.1]}
24. Rxf5 {[%clk 0:01:27.1]} 24... exd4 {[%clk 0:01:48.4]} 25. Na4 {[%clk
0:01:20.2]} 25... Nbd3 {[%clk 0:01:35.5]} 26. Rcf1 {[%clk 0:01:15.5]} 26... Ne4
{[%clk 0:01:23.9]} 27. Qxg7+ {[%clk 0:01:12.7]} 27... Kxg7 {[%clk 0:01:23.1]}
28. Rxa5 {[%clk 0:01:13.6]} 28... Ne5 {[%clk 0:01:07.6]} 29. Rd5 {[%clk
0:01:07]} 29... Ng3 {[%clk 0:00:59.2]} 30. Rd1 {[%clk 0:01:02.6]} 30... d3
{[%clk 0:00:58.6]} 31. Nc5 {[%clk 0:01:00.3]} 31... Ne2+ {[%clk 0:00:52.5]} 32.
Kh2 {[%clk 0:00:58]} 32... Nc3 {[%clk 0:00:52]} 33. Rd2 {[%clk 0:00:52]} 33...
Nxd5 {[%clk 0:00:49.3]} 34. cxd5 {[%clk 0:00:51.6]} 34... Rc8 {[%clk 0:00:42.7]}
35. Nxd3 {[%clk 0:00:49.8]} 35... Nd7 {[%clk 0:00:42.3]} 36. Nf4 {[%clk
0:00:43.6]} 36... Kf6 {[%clk 0:00:42.4]} 37. Kg3 {[%clk 0:00:42]} 37... Kf5
{[%clk 0:00:41]} 38. Kf3 {[%clk 0:00:40.5]} 38... Ne5+ {[%clk 0:00:40.1]} 39.
Kg3 {[%clk 0:00:24.3]} 39... Rg8+ {[%clk 0:00:38.6]} 40. Kf2 {[%clk 0:00:21.1]}
40... Kxf4 {[%clk 0:00:38.2]} 41. d6 {[%clk 0:00:21.6]} 41... Nd7 {[%clk
0:00:38.4]} 42. Rd5 {[%clk 0:00:20]} 42... Rg7 {[%clk 0:00:35.8]} 43. g4 {[%clk
0:00:18.8]} 43... Ke4 {[%clk 0:00:35.7]} 44. Rf5 {[%clk 0:00:18.3]} 44... Nb6
{[%clk 0:00:31.3]} 45. Kg3 {[%clk 0:00:15.7]} 45... Nd5 {[%clk 0:00:30.7]} 46.
h4 {[%clk 0:00:11.4]} 46... Rd7 {[%clk 0:00:30.9]} 47. Rh5 {[%clk 0:00:10]}
47... b5 {[%clk 0:00:24.9]} 48. Rh6 {[%clk 0:00:09.3]} 48... b4 {[%clk
0:00:24.9]} 49. g5 {[%clk 0:00:09.4]} 49... Nc3 {[%clk 0:00:23.6]} 50. Kg4
{[%clk 0:00:09]} 50... Nxa2 {[%clk 0:00:23.9]} 51. h5 {[%clk 0:00:09]} 51... Nc1
{[%clk 0:00:23.5]} 52. g6 {[%clk 0:00:09.1]} 52... hxg6 {[%clk 0:00:23.7]} 53.
hxg6 {[%clk 0:00:08.7]} 53... Nxb3 {[%clk 0:00:22.7]} 54. Rh7 {[%clk 0:00:08.4]}
54... Rxd6 {[%clk 0:00:22.9]} 55. g7 {[%clk 0:00:08.7]} 55... Rg6+ {[%clk
0:00:22.1]} 56. Kh5 {[%clk 0:00:09]} 56... Rg1 {[%clk 0:00:20.1]} 57. Kh6 {[%clk
0:00:09.4]} 57... a5 {[%clk 0:00:20.1]} 58. Rh8 {[%clk 0:00:09.7]} 58... a4
{[%clk 0:00:19.7]} 59. Re8+ {[%clk 0:00:09.5]} 59... Kd3 {[%clk 0:00:19.4]} 60.
Re6 {[%clk 0:00:07]} 60... Rxg7 {[%clk 0:00:18.3]} 61. Kxg7 {[%clk 0:00:07.3]}
61... a3 {[%clk 0:00:18.9]} 62. Rb6 {[%clk 0:00:06.5]} 62... Kc3 {[%clk
0:00:18.8]} 63. Rc6+ {[%clk 0:00:06.2]} 63... Kb2 {[%clk 0:00:18.8]} 64. Kf6
{[%clk 0:00:06.2]} 64... a2 {[%clk 0:00:19.2]} 65. Rb6 {[%clk 0:00:06.1]} 65...
a1=Q {[%clk 0:00:19.2]} 66. Rxb4 {[%clk 0:00:07]} 66... Ka3+ {[%clk 0:00:19.5]}
0-1

[Event "*** SCC Grand Prix: Titled Tuesday Blitz"]
[Site "Chess.com"]
[Date "2020.10.13"]
[Round "7"]
[White "ChessWarrior7197"]
[Black "amintabatabaei"]
[Result "1/2-1/2"]
[WhiteElo "3033"]
[BlackElo "2925"]
[TimeControl "180+1"]
[EndTime "11:18:09 PDT"]
[Termination "Game drawn by repetition"]

1. e4 {[%clk 0:03:00.9]} 1... e5 {[%clk 0:02:57.8]} 2. Nf3 {[%clk 0:03:00.8]}
2... Nc6 {[%clk 0:02:58.4]} 3. Bb5 {[%clk 0:03:00.6]} 3... Nf6 {[%clk
0:02:57.7]} 4. O-O {[%clk 0:02:59.4]} 4... Nxe4 {[%clk 0:02:57.9]} 5. d4 {[%clk
0:03:00]} 5... Nd6 {[%clk 0:02:58.2]} 6. dxe5 {[%clk 0:03:00.6]} 6... Nxb5
{[%clk 0:02:58.5]} 7. a4 {[%clk 0:03:01.5]} 7... Nbd4 {[%clk 0:02:57.2]} 8. Nxd4
{[%clk 0:03:02]} 8... d5 {[%clk 0:02:56.7]} 9. exd6 {[%clk 0:02:48.2]} 9... Nxd4
{[%clk 0:02:55.8]} 10. Qxd4 {[%clk 0:02:47.4]} 10... Qxd6 {[%clk 0:02:55.1]} 11.
Qe4+ {[%clk 0:02:47.6]} 11... Qe6 {[%clk 0:02:54.6]} 12. Qd4 {[%clk 0:02:48.1]}
12... Qd6 {[%clk 0:02:54.8]} 13. Qe3+ {[%clk 0:02:48.6]} 13... Be6 {[%clk
0:02:53]} 14. Nc3 {[%clk 0:02:47.2]} 14... a6 {[%clk 0:02:44.3]} 15. Rd1 {[%clk
0:02:44.6]} 15... Qc6 {[%clk 0:02:34.4]} 16. Qg3 {[%clk 0:02:38.7]} 16... Bd6
{[%clk 0:02:32.1]} 17. Bf4 {[%clk 0:02:04.9]} 17... Bxf4 {[%clk 0:02:32.1]} 18.
Qxf4 {[%clk 0:02:05.8]} 18... O-O {[%clk 0:02:32.5]} 19. h3 {[%clk 0:02:01.7]}
19... Rad8 {[%clk 0:02:30.5]} 20. Rd4 {[%clk 0:02:00]} 20... Qb6 {[%clk
0:02:15.6]} 21. Rb4 {[%clk 0:01:55.1]} 21... Qc6 {[%clk 0:02:13.7]} 22. Re1
{[%clk 0:01:52.8]} 22... h6 {[%clk 0:02:09.6]} 23. Re3 {[%clk 0:01:48.6]} 23...
Qd6 {[%clk 0:01:51.1]} 24. Qxd6 {[%clk 0:01:44.7]} 24... Rxd6 {[%clk 0:01:52]}
25. Rxb7 {[%clk 0:01:45.6]} 25... c5 {[%clk 0:01:39.2]} 26. Ne4 {[%clk
0:01:43.6]} 26... Rc6 {[%clk 0:01:35.5]} 27. Rc3 {[%clk 0:01:19.3]} 27... c4
{[%clk 0:01:34.3]} 28. Re3 {[%clk 0:01:01]} 28... Rd8 {[%clk 0:01:32.2]} 29. a5
{[%clk 0:00:56.7]} 29... Rd5 {[%clk 0:01:26.7]} 30. Ra3 {[%clk 0:00:46.3]} 30...
Rd4 {[%clk 0:01:27]} 31. f3 {[%clk 0:00:42.1]} 31... Bd5 {[%clk 0:01:15.1]} 32.
Rb6 {[%clk 0:00:42.3]} 32... Bxe4 {[%clk 0:00:44.4]} 33. fxe4 {[%clk 0:00:41.2]}
33... Re6 {[%clk 0:00:45]} 34. Re3 {[%clk 0:00:31.6]} 34... Rxb6 {[%clk
0:00:41.7]} 35. axb6 {[%clk 0:00:30.9]} 35... Rd6 {[%clk 0:00:42.4]} 36. b3
{[%clk 0:00:21.1]} 36... Rxb6 {[%clk 0:00:40.9]} 37. bxc4 {[%clk 0:00:22]} 37...
Rc6 {[%clk 0:00:30.3]} 38. Rc3 {[%clk 0:00:21.6]} 38... Re6 {[%clk 0:00:31]} 39.
c5 {[%clk 0:00:20.2]} 39... Rxe4 {[%clk 0:00:31.4]} 40. Kf2 {[%clk 0:00:20.2]}
40... Re8 {[%clk 0:00:30.6]} 41. Kf3 {[%clk 0:00:19.1]} 41... f6 {[%clk
0:00:27.3]} 42. Ra3 {[%clk 0:00:16.5]} 42... Re5 {[%clk 0:00:20]} 43. c6 {[%clk
0:00:15.9]} 43... Rc5 {[%clk 0:00:19.3]} 44. Rxa6 {[%clk 0:00:15.7]} 44... Kf7
{[%clk 0:00:18.3]} 45. Ke4 {[%clk 0:00:16.6]} 45... Rxc2 {[%clk 0:00:18]} 46.
Kd5 {[%clk 0:00:15.3]} 46... f5 {[%clk 0:00:14]} 47. g3 {[%clk 0:00:11.6]} 47...
g5 {[%clk 0:00:12.9]} 48. Ra4 {[%clk 0:00:08.3]} 48... Kf6 {[%clk 0:00:10.1]}
49. h4 {[%clk 0:00:04.1]} 49... f4 {[%clk 0:00:06.7]} 50. hxg5+ {[%clk
0:00:03.2]} 50... hxg5 {[%clk 0:00:07.6]} 51. gxf4 {[%clk 0:00:03.7]} 51... gxf4
{[%clk 0:00:08.5]} 52. Rxf4+ {[%clk 0:00:04.3]} 52... Ke7 {[%clk 0:00:09.2]} 53.
Ra4 {[%clk 0:00:03.6]} 53... Kd8 {[%clk 0:00:07.6]} 54. Ra7 {[%clk 0:00:02.1]}
54... Kc8 {[%clk 0:00:06.8]} 55. Rh7 {[%clk 0:00:01.9]} 55... Rd2+ {[%clk
0:00:06.6]} 56. Kc5 {[%clk 0:00:02.4]} 56... Rc2+ {[%clk 0:00:07.1]} 57. Kd6
{[%clk 0:00:03]} 57... Rd2+ {[%clk 0:00:07.6]} 58. Kc5 {[%clk 0:00:03.5]} 58...
Rc2+ {[%clk 0:00:08.3]} 59. Kb6 {[%clk 0:00:04.1]} 59... Rb2+ {[%clk 0:00:08.8]}
60. Kc5 {[%clk 0:00:04.7]} 60... Rc2+ {[%clk 0:00:09]} 1/2-1/2